{"text_format":"3","workbook":"xlsx","n_sheets":2,"sheets":["ใบแจ้งหนี้การเรียกเก็บเงิน","การตั้งค่าบริษัท"],"not_rendered":{"images":1,"defined_names":27},"read":"whole","date_system":"1900"}

{"sheet":"ใบแจ้งหนี้การเรียกเก็บเงิน","index":0,"n_rows":35,"n_cols":7,"rows_kept":35,"merged":[[1,3,2,4],[3,3,3,4],[4,3,4,4],[5,3,5,4],[23,1,23,3],[24,1,24,3],[25,1,25,3],[26,1,26,3]]}
[null,"ใบแจ้งหนี้","0005"]
[null,{"$f":"TODAY()","v":"2022-04-07"},null,{"$f":"InvoiceTotal","v":79.65},null," ","การตั้งค่าบริษัท"]
[null,"ครบกำหนดชำระเงินภายใน:",{"$f":"TODAY()+15","v":"2022-04-22"},null,null," "]
[null,"KIM ABERCROMBIE",null,"งานผจญภัย"]
[null,"Fabrikam, Inc.",null,"23456 ถนนเมเปิล"]
[null,"1234 ถนนที่หนึ่ง",null,"ออเรนจ์ กรูฟ แคลิฟอร์เนีย 09876"]
[null,"ฟอเรสต์ OR 12345"]
[null,"ปริมาณ","รายละเอียด","ราคาต่อหน่วย","ผลรวมของรายการ"]
[null,2,"วิดเจ็ต",14.95,{"$f":"IFERROR(InvoiceDetails[[#This Row],[ราคาต่อหน่วย]]*InvoiceDetails[[#This Row],[ปริมาณ]],\"\")","v":{"v":29.9,"d":"29.90"}}]
[null,5,"Washers",9.95,{"$f":"IFERROR(InvoiceDetails[[#This Row],[ราคาต่อหน่วย]]*InvoiceDetails[[#This Row],[ปริมาณ]],\"\")","v":49.75}]
[{"$nulls":4},{"$f":"IFERROR(InvoiceDetails[[#This Row],[ราคาต่อหน่วย]]*InvoiceDetails[[#This Row],[ปริมาณ]],\"\")","v":0}]
[{"$nulls":4},{"$f":"IFERROR(InvoiceDetails[[#This Row],[ราคาต่อหน่วย]]*InvoiceDetails[[#This Row],[ปริมาณ]],\"\")","v":0}]
[{"$nulls":4},{"$f":"IFERROR(InvoiceDetails[[#This Row],[ราคาต่อหน่วย]]*InvoiceDetails[[#This Row],[ปริมาณ]],\"\")","v":0}]
[{"$nulls":4},{"$f":"IFERROR(InvoiceDetails[[#This Row],[ราคาต่อหน่วย]]*InvoiceDetails[[#This Row],[ปริมาณ]],\"\")","v":0}]
[{"$nulls":4},{"$f":"IFERROR(InvoiceDetails[[#This Row],[ราคาต่อหน่วย]]*InvoiceDetails[[#This Row],[ปริมาณ]],\"\")","v":0}]
[{"$nulls":4},{"$f":"IFERROR(InvoiceDetails[[#This Row],[ราคาต่อหน่วย]]*InvoiceDetails[[#This Row],[ปริมาณ]],\"\")","v":0}]
[{"$nulls":4},{"$f":"IFERROR(InvoiceDetails[[#This Row],[ราคาต่อหน่วย]]*InvoiceDetails[[#This Row],[ปริมาณ]],\"\")","v":0}]
[{"$nulls":4},{"$f":"IFERROR(InvoiceDetails[[#This Row],[ราคาต่อหน่วย]]*InvoiceDetails[[#This Row],[ปริมาณ]],\"\")","v":0}]
[{"$nulls":4},{"$f":"IFERROR(InvoiceDetails[[#This Row],[ราคาต่อหน่วย]]*InvoiceDetails[[#This Row],[ปริมาณ]],\"\")","v":0}]
[{"$nulls":4},{"$f":"IFERROR(InvoiceDetails[[#This Row],[ราคาต่อหน่วย]]*InvoiceDetails[[#This Row],[ปริมาณ]],\"\")","v":0}]
[{"$nulls":4},{"$f":"IFERROR(InvoiceDetails[[#This Row],[ราคาต่อหน่วย]]*InvoiceDetails[[#This Row],[ปริมาณ]],\"\")","v":0}]
[{"$nulls":4},{"$f":"IFERROR(InvoiceDetails[[#This Row],[ราคาต่อหน่วย]]*InvoiceDetails[[#This Row],[ปริมาณ]],\"\")","v":0}]
[{"$nulls":4},{"$f":"IFERROR(InvoiceDetails[[#This Row],[ราคาต่อหน่วย]]*InvoiceDetails[[#This Row],[ปริมาณ]],\"\")","v":0}]
[null,"ส่วนลด"]
[null,"ผลรวมสุทธิ",null,null,{"$f":"SUM(InvoiceDetails[ผลรวมของรายการ])-E24","v":{"v":79.65,"d":"฿79.65"}}]
[null,"ภาษี"]
[null,{"$f":"REPT(CompanySetup_YourCurrencyAbbreviation,LEN(CompanySetup_YourCurrencyAbbreviation)>0) & \" ผลรวม\"","v":"USD ผลรวม"},null,null,{"$f":"IFERROR(E25+E26, \"\")","v":{"v":79.65,"d":"฿79.65"}}]
[null,"รายละเอียดการชำระเงิน",null,null,"ข้อมูลอื่นๆ"]
[null,"ชื่อผู้รับผลประโยชน์:",{"$f":" CompanySetup_BankBeneficiaryName","v":"Adventure Works"},null,{"$f":"IFERROR(CompanySetup_YourName,\"\")","v":"Greg Akselrod"}]
[null,"ชื่อธนาคาร:",{"$f":"CompanySetup_BankName","v":"Woodgrove Bank"},null,{"$f":"IFERROR(\"หมายเลขโทรศัพท์: \" & CompanySetup_YourPhone,\"\")","v":"หมายเลขโทรศัพท์: 425-555-0150"}]
[null,"ที่อยู่ของธนาคาร:",{"$f":"CompanySetup_BankAddress","v":"234 ถนนเมนน์ ออเรนจ์ กรูฟ แคลิฟอร์เนีย 09876"},null,{"$f":"IFERROR(\"โทรสาร: \" & CompanySetup_YourFax,\"\")","v":"โทรสาร: 425-555-0151"}]
[null,"หมายเลขบัญชี:",{"$f":"CompanySetup_BankAccount","v":1234567},null,{"$f":"IFERROR(CompanySetup_YourURL,\"\")","v":"Adventure-Works.com"}]
[null,"Routing Number (รหัส SWIFT)",{"$f":"CompanySetup_BankRouting","v":9876543210},null,{"$f":"IFERROR(CompanySetup_YourEmail,\"\")","v":"Accounting@Adventure-Works.com"}]
[null,"การอ้างอิงการชำระเงิน:",{"$f":"InvoiceNumberDisplay","v":"0005"},null,{"$f":"IFERROR(IF(LEN(Client_PO),\"สัญญา/PO: \" & Client_PO,\"\"),\"\")","v":""}]
[null,{"$f":"UPPER(\"ควรชำระเงินผ่านธนาคารหรือเช็คสั่งจ่ายให้\" & CompanySetup_CheckPayee & \".\")","v":"ควรชำระเงินผ่านธนาคารหรือเช็คสั่งจ่ายให้ADVENTURE WORKS."}]

{"sheet":"การตั้งค่าบริษัท","index":1,"n_rows":20,"n_cols":5,"rows_kept":20}
[null,"การตั้งค่าบริษัท"]
[null,"รายละเอียดของบริษัทที่เรียกเก็บเงิน","มูลค่า",null,"ใบแจ้งหนี้การเรียกเก็บเงิน"]
[null,"ชื่อ","Greg Akselrod"]
[null,"ชื่อบริษัท","ADVENTURE WORKS"]
[null,"บรรทัดที่อยู่ 1","23456 ถนนเมเปิล"]
[null,"บรรทัดที่อยู่ 2","ออเรนจ์ กรูฟ แคลิฟอร์เนีย 09876"]
[null,"บรรทัดที่อยู่ 3"]
[null,"บรรทัดที่อยู่ 4"]
[null,"บรรทัดที่อยู่ 5"]
[null,"หมายเลขโทรศัพท์","425-555-0150"]
[null,"โทรสาร","425-555-0151"]
[null,"เว็บไซต์","Adventure-Works.com"]
[null,"อีเมล","Accounting@Adventure-Works.com"]
[null,"ตัวย่อสกุลเงิน","USD"]
[null,"ชื่อของผู้รับผลประโยชน์สำหรับการโอนเงินผ่านธนาคาร","Adventure Works"]
[null,"ชื่อธนาคาร","Woodgrove Bank"]
[null,"ที่อยู่ของธนาคาร","234 ถนนเมนน์ ออเรนจ์ กรูฟ แคลิฟอร์เนีย 09876"]
[null,"หมายเลขบัญชี",1234567]
[null,"Routing Number (รหัส SWIFT)",9876543210]
[null,"สั่งจ่ายเช็คให้กับ","Adventure Works"]